fUSD/lending_fUSD_20240217
["ID","MTS","AMOUNT","RATE_DAILY","PERIOD"]
[314309326,1708170993933,-3069.8582,0.000229,2]
[314309327,1708170993957,-36827.2094,0.000229,2]
[314309328,1708170993979,-1338.5924,0.000229,2]
[314309329,1708170994001,-37608.5346,0.000229,2]
[314309330,1708171023945,-1047.79729017,0.00022899,2]
[314309331,1708171023974,-1889.9581,0.000229,2]
[314309332,1708171024001,-2500.0,0.000229,2]
[314309333,1708171024028,-94562.24460983,0.000229,2]
[314309334,1708171050681,-5437.75539017,0.000229,2]
[314309335,1708171050708,-1413.1312,0.000229,2]
[314309336,1708171050733,-169.61833618,0.0002293,2]
[314309337,1708171050757,-155.0,0.00022998,2]
[314309338,1708171050781,-189.69805008,0.00022998,2]
[314309339,1708171050805,-424.26969077,0.00022999,2]
[314309340,1708171050830,-69210.5273328,0.00023,2]
[314309341,1708171064458,-358.88412746,0.00022999,2]
[314309342,1708171064487,-99641.11587254,0.00023,2]
[314309343,1708171115636,-6037.54160333,0.0002289,2]
[314309344,1708171115664,-93962.45839667,0.000229,2]
[314309345,1708171141029,-150.22725239,0.00022877,2]
[314309346,1708171141058,-99849.77274761,0.000229,2]
[314309347,1708171143022,-51187.76885572,0.000229,2]
[314309348,1708171143056,-792.2014,0.000229,2]
[314309349,1708171143082,-39498.4927,0.000229,2]
[314309350,1708171143109,-214.8602,0.000229,2]
[314309351,1708171143138,-1168.71130591,0.0002293,2]
[314309352,1708171143164,-155.0,0.00022998,2]
[314309353,1708171143193,-189.69805008,0.00022998,2]
[314309354,1708171143221,-358.88412746,0.00022999,2]
[314309355,1708171143248,-6434.38336083,0.00023,2]
[314309356,1708171158443,-427.06107433,0.00022899,2]
[314309357,1708171158471,-99572.93892567,0.00023,2]
[314309358,1708171193941,-1000.0,0.000229,2]
[314309359,1708171193968,-99000.0,0.000229,2]
[314309360,1708171278652,45859.0146,0.000228,2]
[314309361,1708171320446,836.8137,0.000228,2]
[314309362,1708171372042,170.23,0.00020499,2]
[314309363,1708171380355,15000.0,0.000229,7]
[314309365,1708171393370,15000.0,0.00025,7]
[314309376,1708171568345,176.85,0.00016712,2]
[314309381,1708171692281,250.0,0.00022647,2]
[314309385,1708171831760,-1566.98708128,0.00022899,2]
[314309386,1708171831813,-565.70096729,0.00022899,2]
[314309387,1708171831827,-1000.0,0.000229,2]
[314309388,1708171831839,-827.33502531,0.000229,2]
[314309389,1708171831926,-29669.28307469,0.000229,2]
[314309390,1708171831939,-34787.0161,0.000229,2]
[314309391,1708171831953,-1000.0,0.000229,2]
[314309392,1708171831965,-164.51876974,0.000229,2]
[314309393,1708171831976,-2100.1158,0.000229,2]
[314309394,1708171831989,-2869.1009,0.000229,2]
[314309395,1708171832003,-2500.0,0.000229,2]
[314309396,1708171832014,-170.84824694,0.0002299,2]
[314309397,1708171832027,-395.64156866,0.00022999,2]
[314309398,1708171832040,-150736.45965603,0.00023,2]
[314309399,1708171832055,-319.24149127,0.00023,2]
[314309400,1708171832070,-357.46371413,0.00023,2]
[314309401,1708171832091,-800.006,0.00023,2]
[314309405,1708171839436,-155.0,0.00022898,2]
[314309406,1708171839448,-590.86173646,0.00023,2]
[314309407,1708171839464,-741.27723955,0.00023,2]
[314309408,1708171839478,-420.8888349,0.00023,2]
[314309409,1708171839490,-313.89851893,0.00023,2]
[314309410,1708171839923,-498367.05357144,0.00023,2]
[314309411,1708171839933,-975.024,0.00023,2]
[314309412,1708171839943,-7434.01914723,0.0002313,2]
[314309413,1708171839953,-1167.51,0.00023669,2]
[314309414,1708171839965,-316.55789385,0.0002425,2]
[314309415,1708171839974,-999.99,0.0002425,2]
[314309416,1708171839983,-515.28,0.0002425,2]
[314309417,1708171839992,-3242.43,0.0002425,2]
[314309418,1708171840001,-499.99,0.0002425,2]
[314309419,1708171840011,-1000.0,0.00024999,2]
[314309420,1708171840020,-1709.27742184,0.00025,2]
[314309421,1708171840029,-917.53699392,0.00025,2]
[314309422,1708171840038,-34066.21979568,0.0002509,2]
[314309423,1708171840047,-881.9688073,0.0002509,2]
[314309424,1708171840056,-3587.21,0.0002509,2]
[314309425,1708171840065,-164.51876974,0.00025171,2]
[314309426,1708171840074,-1415.41,0.00025407,2]
[314309427,1708171840083,-2705.0,0.00025457,2]
[314309428,1708171840092,-253.37,0.00025458,2]
[314309429,1708171840101,-1852.42,0.00025469,2]
[314309430,1708171840110,-551.83,0.00025494,2]
[314309431,1708171840120,-2000.0,0.00025509,2]
[314309432,1708171840129,-860.0,0.00025517,2]
[314309433,1708171840138,-250.0,0.00025524,2]
[314309434,1708171840147,-409.8,0.00025537,2]
[314309435,1708171840156,-200.0,0.00025539,2]
[314309436,1708171840165,-600.0,0.00025588,2]
[314309437,1708171840175,-4192.92,0.00025604,2]
[314309438,1708171840184,-271.06,0.00025607,2]
[314309439,1708171840193,-23900.0,0.00025614,2]
[314309440,1708171840202,-250.0,0.00025624,2]
[314309441,1708171840211,-157.67,0.00025667,2]
[314309442,1708171840220,-409.8,0.00025671,2]
[314309443,1708171840229,-409.8,0.00025806,2]
[314309444,1708171840238,-1167.51,0.00025933,2]
[314309445,1708171840247,-409.8,0.0002594,2]
[314309446,1708171840258,-157.67,0.00026002,2]
[314309447,1708171840268,-409.8,0.00026074,2]
[314309448,1708171840277,-150.0,0.00026079,2]
[314309449,1708171840286,-409.8,0.00026209,2]
[314309450,1708171840295,-13714.92532535,0.000263,2]
[314309451,1708171840304,-157.67,0.00026336,2]
[314309452,1708171840313,-167.0,0.00026336,2]
[314309453,1708171840323,-409.8,0.00026343,2]
[314309454,1708171840332,-182.73,0.00026466,2]
[314309455,1708171840341,-409.8,0.00026478,2]
[314309456,1708171840350,-409.8,0.00026612,2]
[314309457,1708171840359,-157.67,0.0002667,2]
[314309458,1708171840369,-409.8,0.00026746,2]
[314309459,1708171840378,-300.0,0.0002683,2]
[314309460,1708171840387,-409.8,0.00026881,2]
[314309461,1708171840396,-201.53577253,0.00027,4]
[314309462,1708171840405,-250.0,0.00027,2]
[314309463,1708171840414,-177.43,0.00027,2]
[314309464,1708171840423,-157.67,0.00027005,2]
[314309465,1708171840432,-409.8,0.00027015,2]
[314309466,1708171840441,-210.0,0.000271,2]
[314309467,1708171840450,-551.83,0.00027138,2]
[314309468,1708171840459,-409.8,0.0002715,2]
[314309469,1708171840468,-27479.76473038,0.000272,2]
[314309470,1708171840478,-167.0,0.00027206,2]
[314309471,1708171840486,-250.0,0.00027274,2]
[314309472,1708171840495,-409.8,0.00027284,2]
[314309473,1708171840505,-155.0,0.00027397,2]
[314309474,1708171840514,-409.8,0.00027419,2]
[314309475,1708171840523,-164.51876974,0.00027443,3]
[314309476,1708171840531,-8256.37090165,0.000275,2]
[314309477,1708171840541,-177.43,0.00027548,2]
[314309478,1708171840550,-409.8,0.00027553,2]
[314309479,1708171840559,-409.8,0.00027687,2]
[314309480,1708171840568,-409.8,0.00027822,2]
[314309481,1708171840577,-830.75,0.0002795,2]
[314309482,1708171840586,-409.8,0.00027956,2]
[314309483,1708171840595,-152.06641792,0.00027975,2]
[314309484,1708171840605,-177.55942042,0.00027975,2]
[314309485,1708171840614,-1953.11343563,0.00027975,2]
[314309486,1708171840623,-153.1066797,0.00027975,2]
[314309487,1708171840634,-178.61210794,0.00027975,2]
[314309488,1708171840643,-1161.5160492,0.00027975,2]
[314309489,1708171840652,-200.95724061,0.00027975,2]
[314309490,1708171840661,-197.63440419,0.00027975,2]
[314309491,1708171840671,-1488066.56664808,0.00028,2]
[314309492,1708171840681,-167.0,0.00028075,2]
[314309493,1708171840690,-409.8,0.00028091,2]
[314309494,1708171840699,-17793.90178936,0.000281,2]
[314309495,1708171840709,-1167.51,0.00028197,2]
[314309496,1708171840718,-300.0,0.00028199,2]
[314309497,1708171840729,-155.0,0.00028767,2]
[314309498,1708171840739,-551.83,0.00028782,2]
[314309499,1708171840749,-600.0,0.00028786,2]
[314309500,1708171840758,-830.75,0.00028938,2]
[314309501,1708171840767,-167.0,0.00028945,2]
[314309502,1708171840776,-1953.11343562,0.00028959,2]
[314309503,1708171840786,-164.51876974,0.00029714,4]
[314309504,1708171840795,-400.0,0.00029715,2]
[314309505,1708171840805,-167.0,0.00029814,2]
[314309506,1708171840814,-830.75,0.00029927,2]
[314309507,1708171840824,-1953.11343562,0.00029943,2]
[314309508,1708171840833,-1817.93660883,0.0003,4]
[314309509,1708171840842,-32441.71883704,0.0003,4]
[314309510,1708171840851,-1177.58646698,0.0003,4]
[314309511,1708171840862,-456266.95772415,0.0003,2]
[314309512,1708171840872,-205.0,0.0003,2]
[314309513,1708171840881,-687.62801211,0.000301,2]
[314309514,1708171840895,-156.4,0.00030137,2]
[314309515,1708171840904,-155.0,0.00030137,2]
[314309516,1708171840914,-551.83,0.00030426,2]
[314309517,1708171840923,-1167.51,0.00030461,2]
[314309518,1708171840933,-167.0,0.00030683,2]
[314309519,1708171840942,-830.75,0.00030915,2]
[314309520,1708171840951,-1953.11343562,0.00030927,2]
[314309521,1708171840961,-156.4,0.00031133,2]
[314309522,1708171840972,-4645.7208012,0.0003143,4]
[314309523,1708171840982,-155.0,0.00031507,2]
[314309524,1708171840991,-352.43,0.00031617,2]
[314309525,1708171841001,-168.27,0.00031644,2]
[314309526,1708171841010,-170.84824694,0.0003179,2]
[314309527,1708171841019,-20652.0640299,0.00031797,2]
[314309528,1708171841028,-269982.714368,0.000318,3]
[314309529,1708171841037,-830.75,0.00031904,2]
[314309530,1708171841046,-1953.11343562,0.00031911,3]
[314309531,1708171841055,-600.0,0.00031984,2]
[314309532,1708171841064,-164.51876974,0.00031986,5]
[314309533,1708171841073,-551.83,0.0003207,2]
[314309534,1708171841082,-412.37702673,0.00032125,2]
[314309535,1708171841091,-156.4,0.0003213,2]
[314309536,1708171841100,-1167.51,0.00032724,2]
[314309537,1708171841109,-155.0,0.00032877,2]
[314309538,1708171841118,-830.75,0.00032892,2]
[314309539,1708171841127,-1953.11343562,0.00032895,4]
[314309540,1708171841136,-5475.0,0.000329,2]
[314309541,1708171841146,-1262.81416688,0.00033,2]
[314309542,1708171841155,-182.73,0.00033082,2]
[314309543,1708171841164,-156.4,0.00033126,2]
[314309544,1708171841174,-352.43,0.00033198,2]
[314309545,1708171841183,-153.10667969,0.00033388,2]
[314309546,1708171841192,-1161.5160492,0.00033388,2]
[314309547,1708171841201,-200.95724061,0.00033388,2]
[314309548,1708171841210,-400.0,0.00033429,2]
[314309549,1708171841219,-551.83,0.00033714,2]
[314309550,1708171841228,-1953.11343562,0.0003388,6]
[314309551,1708171841237,-830.75,0.00033881,2]
[314309552,1708171841247,-153.40750242,0.000339,2]
[314309553,1708171841257,-153.40750239,0.000339,2]
[314309554,1708171841266,-153.40750239,0.000339,2]
[314309555,1708171841276,-153.40750239,0.000339,2]
[314309556,1708171841286,-156.4,0.00034122,2]
[314309557,1708171841295,-5475.32588824,0.000342,2]
[314309558,1708171841304,-155.0,0.00034247,2]
[314309559,1708171841313,-164.51876974,0.00034257,6]
[314309560,1708171841322,-153.40750239,0.0003431,2]
[314309561,1708171841331,-409.54,0.00034493,2]
[314309562,1708171841340,-573.558808,0.0003452,2]
[314309563,1708171841349,-839.666072,0.0003452,2]
[314309564,1708171841358,-979.900714,0.0003452,2]
[314309565,1708171841368,-1679.332145,0.0003452,2]
[314309566,1708171841377,-3838.473475,0.0003452,2]
[314309567,1708171841387,-839.666072,0.0003452,2]
[314309568,1708171841396,-1439.427553,0.0003452,2]
[314309569,1708171841406,-1651.650846,0.0003452,2]
[314309571,1708171841415,-1107.251964,0.0003452,2]
[314309573,1708171841424,-5393.99,0.00034521,2]
[314309574,1708171841434,-352.43,0.00034779,2]
[314309575,1708171841443,-860.338212,0.00034794,2]
[314309576,1708171841452,-1259.499109,0.00034794,2]
[314309577,1708171841461,-1469.851072,0.00034794,2]
[314309578,1708171841470,-2518.998217,0.00034794,2]
[314309579,1708171841480,-5757.710212,0.00034794,2]
[314309580,1708171841490,-1259.499109,0.00034794,2]
[314309581,1708171841499,-2159.141329,0.00034794,2]
[314309582,1708171841509,-2477.476269,0.00034794,2]
[314309583,1708171841518,-1660.877946,0.00034794,2]
[314309584,1708171841527,-1953.11343562,0.00034864,7]
[314309585,1708171841536,-431.36195186,0.000349,10]
[314309586,1708171841545,-2221.92,0.000349,2]
[314309587,1708171841555,-645.36,0.000349,2]
[314309588,1708171841564,-3155.61868154,0.000349,2]
[314309589,1708171841573,-3155.61868141,0.000349,2]
[314309590,1708171841582,-3155.61868141,0.000349,2]
[314309591,1708171841591,-3155.61868141,0.000349,2]
[314309592,1708171841600,-3155.61868141,0.000349,2]
[314309593,1708171841609,-3155.61868141,0.000349,2]
[314309594,1708171841619,-3155.61868141,0.000349,2]
[314309595,1708171841629,-3155.61868141,0.000349,2]
[314309596,1708171841638,-1147.117616,0.00034931,2]
[314309597,1708171841647,-1679.332145,0.00034931,2]
[314309598,1708171841656,-1959.801429,0.00034931,2]
[314309599,1708171841666,-3358.66429,0.00034931,2]
[314309600,1708171841676,-7676.94695,0.00034931,2]
[314309601,1708171841686,-1679.332145,0.00034931,2]
[314309602,1708171841695,-2878.855106,0.00034931,2]
[314309603,1708171841704,-3303.301692,0.00034931,2]
[314309604,1708171841714,-2214.503928,0.00034931,2]
[314309605,1708171841723,-1167.51,0.00034988,2]
[314309606,1708171841732,-12938.96551711,0.00035,2]
[314309607,1708171841741,-283.06468421,0.00035,2]
[314309608,1708171841750,-385.37735206,0.00035,2]
[314309609,1708171841761,-3000.0,0.00035,4]
[314309610,1708171841770,-15027.05709968,0.00035,2]
[314309611,1708171841779,-1433.89702,0.00035068,2]
[314309612,1708171841788,-3588.10246471,0.00035068,4]
[314309613,1708171841797,-2099.165182,0.00035068,2]
[314309614,1708171841807,-2449.751786,0.00035068,2]
[314309615,1708171841816,-4198.330363,0.00035068,2]
[314309616,1708171841825,-9596.183688,0.00035068,2]
[314309617,1708171841835,-2099.165182,0.00035068,2]
[314309618,1708171841844,-3598.568883,0.00035068,2]
[314309619,1708171841853,-4129.127115,0.00035068,2]
[314309620,1708171841863,-2768.12991,0.00035068,2]
[314309621,1708171841872,-13778.79565766,0.0003509,2]
[314309622,1708171841882,-156.4,0.00035118,2]
[314309623,1708171841894,-600.0,0.00035183,2]
[314309624,1708171841903,-2007.455829,0.00035342,2]
[314309625,1708171841912,-2938.831254,0.00035342,2]
[314309626,1708171841922,-3429.652501,0.00035342,2]
[314309627,1708171841932,-5877.662508,0.00035342,2]
[314309628,1708171841941,-13434.657163,0.00035342,2]
[314309629,1708171841950,-2938.831255,0.00035342,2]
[314309630,1708171841960,-5037.996436,0.00035342,2]
[314309631,1708171841970,-5780.777962,0.00035342,2]
[314309632,1708171841980,-3875.381874,0.00035342,2]
[314309633,1708171841989,-3155.61868141,0.00035532,2]
[314309634,1708171841998,-500.0,0.00035616,2]
[314309635,1708171842008,-500.0,0.00035616,2]
[314309636,1708171842017,-500.0,0.00035616,2]
[314309637,1708171842026,-500.0,0.00035616,2]
[314309638,1708171842036,-500.0,0.00035616,2]
[314309639,1708171842045,-500.0,0.00035616,2]
[314309640,1708171842053,-500.0,0.00035616,2]
[314309641,1708171842063,-500.0,0.00035616,2]
[314309642,1708171842072,-500.0,0.00035616,2]
[314309643,1708171842081,-500.0,0.00035616,2]
[314309644,1708171842090,-500.0,0.00035616,2]
[314309645,1708171842099,-500.0,0.00035616,2]
[314309646,1708171842108,-500.0,0.00035616,2]
[314309647,1708171842118,-500.0,0.00035616,2]
[314309648,1708171842127,-500.0,0.00035616,2]
[314309649,1708171842137,-500.0,0.00035616,2]
[314309650,1708171842147,-1500.0,0.00035616,10]
[314309651,1708171842156,-155.0,0.00035617,2]
[314309652,1708171842165,-860.0,0.00035723,2]
[314309653,1708171842174,-5393.99,0.00035798,2]
[314309654,1708171842184,-1953.11343562,0.00035848,8]
[314309655,1708171842193,-153.40750239,0.00035894,2]
[314309656,1708171842202,-156.4,0.00036115,2]
[314309657,1708171842211,-2551.43713194,0.00036288,2]
[314309658,1708171842220,-352.43,0.0003636,2]
[314309659,1708171842230,-41776.50378856,0.00036389,2]
[314309660,1708171842239,-41776.50378855,0.00036389,2]
[314309661,1708171842249,-41776.50378855,0.00036389,2]
[314309662,1708171842261,-41776.50378855,0.00036389,2]
[314309663,1708171842270,-41776.50378855,0.00036389,2]
[314309664,1708171842279,-41776.50378855,0.00036389,2]
[314309665,1708171842408,-41776.50378855,0.00036389,2]
[314309666,1708171842417,-41776.50378855,0.00036389,2]
[314309667,1708171842426,-40346.90677439,0.000365,7]
[314309668,1708171842435,-164.51876974,0.00036529,8]
[314309669,1708171842444,-1415.41,0.0003664,2]
[314309670,1708171842452,-15901.13625397,0.00036798,2]
[314309671,1708171842461,-15901.13625397,0.00036798,2]
[314309672,1708171842470,-15901.13625397,0.00036798,2]
[314309673,1708171842479,-15901.13625397,0.00036798,2]
[314309674,1708171842488,-1953.11343562,0.00036832,9]
[314309675,1708171842497,-4192.92,0.00036837,2]
[314309676,1708171842506,-162.20812429,0.00036987,2]
[314309677,1708171842515,-29355.74222131,0.00037,5]
[314309678,1708171842524,-5393.99,0.00037075,2]
[314309679,1708171842533,-3155.61868141,0.00037111,2]
[314309680,1708171842543,-156.4,0.00037111,2]
[314309681,1708171842552,-400.0,0.00037143,2]
[314309682,1708171842561,-1167.51,0.00037252,2]
[314309683,1708171842571,-20652.0640299,0.00037396,2]
[314309684,1708171842580,-93676.5,0.00037399,2]
[314309685,1708171842590,-114493.5,0.00037399,2]
[314309686,1708171842599,-178927.78297634,0.000374,5]
[314309687,1708171842608,-1000.0,0.00037449,2]
[314309688,1708171842617,-153.40750239,0.00037478,2]
[314309689,1708171842626,-759.75542771,0.000375,5]
[314309691,1708171842635,-180.0,0.00037671,2]
[314309693,1708171842644,-1831.82048553,0.00037699,2]
[314309695,1708171842653,-2344.0,0.000377,2]
[314309697,1708171842663,-13918.30258675,0.000377,3]
[314309699,1708171842672,-162.8658829,0.000378,2]
[314309701,1708171842682,-1953.11343562,0.00037816,11]
[314309702,1708171842691,-144564.4482093,0.00037877,2]
[314309703,1708171842701,-188.9450234,0.00037879,2]
[314309704,1708171842709,-227.89924922,0.00037879,2]
[314309705,1708171842721,-2379093.32257465,0.0003788,2]
[314309706,1708171842730,-188.9450234,0.00037899,2]
[314309707,1708171842739,-227.89924922,0.00037899,2]
[314309708,1708171842749,-753.64,0.000379,7]
[314309710,1708171842759,-15470.0,0.000379,2]
[314309711,1708171842768,-666667.369381,0.000379,3]
[314309713,1708171842779,-41776.50378855,0.00037904,2]
[314309714,1708171842788,-15901.13625397,0.00037904,2]
[314309715,1708171842797,-352.43,0.00037941,2]
[314309716,1708171842806,-227.89924922,0.00037999,2]
[314309717,1708171842815,-188.9450234,0.00037999,2]
[314309718,1708171842825,-935.85066898,0.00038,2]
[314309719,1708171842834,-215.98921406,0.00038,4]
[314309720,1708171842844,-1903763.95679652,0.00038,2]
[314309721,1708171842853,-15027.05709968,0.00038,2]
[314309722,1708171842862,-156.4,0.00038107,2]
[314309723,1708171842871,-5393.99,0.00038352,2]
[314309724,1708171842882,-201.70261338,0.00038356,2]
[314309725,1708171842892,-151.58,0.00038356,2]
[314309726,1708171842901,-201.59,0.00038356,2]
[314309727,1708171842910,-486.72,0.00038356,15]
[314309728,1708171842920,-600.0,0.00038381,2]
[314309729,1708171842930,-3155.61868141,0.00038689,2]
[314309730,1708171842939,-227.89924922,0.00038699,2]
[314309731,1708171842948,-188.9450234,0.00038699,2]
[314309732,1708171842958,-13918.3,0.000387,4]
[314309733,1708171842969,-5800.0,0.00038792,2]
[314309734,1708171842978,-5800.0,0.000388,2]
[314309735,1708171842988,-164.51876974,0.000388,9]
[314309736,1708171842997,-1953.11343562,0.000388,12]
[314309737,1708171843006,-153.10667969,0.000388,2]
[314309738,1708171843016,-1161.5160492,0.000388,2]
[314309739,1708171843025,-200.95724061,0.000388,2]
[314309740,1708171843034,-1000.0,0.00038844,2]
[314309741,1708171843043,-188.9450234,0.00038899,2]
[314309742,1708171843052,-227.89924922,0.00038899,2]
[314309743,1708171843061,-188.9450234,0.00038899,2]
[314309744,1708171843070,-227.89924922,0.00038899,2]
[314309745,1708171843078,-188.9450234,0.00038899,2]
[314309746,1708171843087,-227.89924922,0.00038899,2]
[314309747,1708171843096,-188.9450234,0.00038899,2]
[314309748,1708171843105,-227.89924922,0.00038899,2]
[314309749,1708171843114,-4194601.81887735,0.000389,3]
[314309750,1708171843123,-283.06468421,0.000389,2]
[314309752,1708171843133,-385.37735206,0.000389,2]
[314309753,1708171843147,-15027.05709968,0.000389,2]
[314309754,1708171843156,-20034.56205694,0.0003897,2]
[314309755,1708171843166,-1907.83291422,0.00039,2]
[314309756,1708171843175,-32665.2836308,0.00039,40]
[314309757,1708171843184,-200.0,0.00039,30]
[314309758,1708171843194,-32665.2836308,0.00039,40]
[314309759,1708171843202,-153.40750239,0.00039062,3]
[314309760,1708171843211,-156.4,0.00039103,2]
[314309762,1708171843220,-562.8,0.0003926,2]
[314309764,1708171843229,-17788.0,0.00039388,2]
[314309765,1708171843238,-1167.51,0.00039516,2]
[314309766,1708171843247,-5393.99,0.0003963,2]
[314309767,1708171843256,-182.73,0.00039699,2]
[314309768,1708171843267,-13918.3,0.000397,4]
[314309769,1708171843276,-177.55942042,0.0003978,2]
[314309770,1708171843285,-41776.50378855,0.0003978,2]
[314309771,1708171843294,-15901.13625397,0.0003978,2]
[314309772,1708171843303,-284.3272019,0.00039854,12]
[314309773,1708171843312,-209.18429795,0.0003987,7]
[314309774,1708171843321,-726.00250677,0.0003987,10]
[314309775,1708171843330,-188.9450234,0.00039879,2]
[314309776,1708171843339,-227.89924922,0.00039879,2]
[314309777,1708171843348,-188.9450234,0.00039879,2]
[314309778,1708171843357,-227.89924922,0.00039879,2]
[314309779,1708171843366,-188.9450234,0.00039879,2]
[314309780,1708171843375,-227.89924922,0.00039879,2]
[314309781,1708171843384,-188.9450234,0.00039879,2]
[314309782,1708171843393,-227.89924922,0.00039879,2]
[314309783,1708171843402,-188.9450234,0.00039879,2]
[314309784,1708171843411,-227.89924922,0.00039879,2]
[314309785,1708171843420,-5010179.72079618,0.0003988,2]
[314309786,1708171843436,-229496.58917321,0.0003988,2]
[314309787,1708171843445,-15027.05709968,0.0003988,2]
[314309788,1708171843454,-1270.47860103,0.00039891,2]
[314309789,1708171843463,-209.45,0.000399,2]
[314309790,1708171843471,-159.61444784,0.0004,30]
[314309791,1708171843481,-60561.57189229,0.0004,30]
[314309792,1708171843490,-571.62122995,0.0004,2]
[314309793,1708171843499,-3118.14801883,0.0004,2]
[314309794,1708171843508,-150.808351,0.0004,2]
[314309795,1708171843517,-795.2,0.0004,2]
[314309796,1708171843527,-156.4,0.000401,2]
[314309797,1708171843537,-1000.0,0.00040238,2]
[314309798,1708171843546,-3155.61868141,0.00040268,5]
[314309799,1708171843556,-153.40750239,0.00040646,9]
[314309800,1708171843565,-13918.3,0.000407,6]
[314309801,1708171843575,-562.8,0.00040733,2]
[314309802,1708171843584,-188.9450234,0.00040853,3]
[314309803,1708171843594,-227.89924922,0.00040853,3]
[314309804,1708171843603,-7098.0,0.00040854,4]
[314309805,1708171843615,-66019.60119702,0.00040854,2]
[314309806,1708171843624,-23017.94119475,0.00040854,32]
[314309807,1708171843633,-1103.54391099,0.00040854,3]
[314309808,1708171843643,-15931.47244674,0.00040854,2]
[314309809,1708171843653,-275.15622716,0.00040854,30]
[314309810,1708171843662,-216.5760994,0.00040854,30]
[314309811,1708171843672,-155.56468996,0.00040854,120]
[314309812,1708171843682,-5358.94753529,0.00040854,2]
[314309813,1708171843691,-283.32387974,0.00040854,2]
[314309814,1708171843700,-468.77508963,0.00040854,2]
[314309815,1708171843710,-159.35404023,0.00040854,30]
[314309816,1708171843719,-155.39982316,0.00040854,2]
[314309817,1708171843728,-385.13127339,0.00040854,2]
[314309818,1708171843737,-17905.96232048,0.00040854,2]
[314309819,1708171843747,-5095.71440095,0.00040854,4]
[314309820,1708171843756,-32666.56886121,0.00040854,120]
[314309821,1708171843766,-201.59239623,0.00040854,120]
[314309822,1708171843775,-466.0482353,0.00040854,2]
[314309823,1708171843785,-656.47572142,0.00040854,2]
[314309824,1708171843794,-311.01975504,0.00040854,2]
[314309825,1708171843803,-1224.17933206,0.00040854,4]
[314309826,1708171843812,-2543.56387118,0.00040854,2]
[314309827,1708171843821,-9008.17816563,0.00040854,4]
[314309828,1708171843830,-6112.5089736,0.00040854,7]
[314309829,1708171843839,-5514.42836242,0.00040854,13]
[314309830,1708171843849,-2644.91665641,0.00040854,2]
[314309831,1708171843859,-6224.69585873,0.00040854,4]
[314309832,1708171843868,-156.29488104,0.00040854,2]
[314309833,1708171843877,-17186.66812909,0.00040854,2]
[314309834,1708171843888,-1808.63572407,0.00040854,2]
[314309835,1708171843900,-649.70326211,0.00040854,120]
[314309836,1708171843909,-169.71709592,0.00040854,120]
[314309837,1708171843919,-20009.47953652,0.00040854,2]
[314309838,1708171843928,-155.29370094,0.00040854,2]
[314309839,1708171843938,-306.59704943,0.00040854,120]
[314309840,1708171843947,-701.82634713,0.00040854,30]
[314309841,1708171843956,-163.94316074,0.00040854,120]
[314309842,1708171843966,-151.34673705,0.00040854,30]
[314309843,1708171843975,-158.00946671,0.00040854,60]
[314309844,1708171843985,-437.6563897,0.00040854,14]
[314309845,1708171843994,-4451.18179673,0.00040854,4]
[314309846,1708171844003,-199.26055783,0.00040854,30]
[314309847,1708171844012,-807.2490428,0.00040854,2]
[314309848,1708171844022,-29000.0,0.00040854,4]
[314309849,1708171844031,-5630.66900529,0.00040854,2]
[314309850,1708171844039,-43476.0,0.00040854,4]
[314309851,1708171844048,-400.0,0.00040858,2]
[314309852,1708171844057,-1060.38409947,0.00040968,4]
[314309853,1708171844066,-150.0,0.0004098,4]
[314309854,1708171844075,-238.19867172,0.00041,30]
[314309855,1708171844084,-800.0,0.00041,2]
[314309856,1708171844093,-166.0,0.00041,2]
[314309857,1708171844105,-200.0,0.00041,30]
[314309858,1708171844114,-2500.0,0.00041095,2]
[314309859,1708171844123,-750.0,0.00041095,2]